bitfinex/quotes_SOLUSD_20230701
["timestamp","ask_amount","ask_price","bid_price","bid_amount"]
[1688206936023,22.984,18.404,18.395,55.0]
[1688206936222,22.984,18.404,18.396,22.993]
[1688206936528,22.984,18.404,18.397,77.992]
[1688206937026,22.979,18.408,18.4,22.988]
[1688206937332,22.979,18.408,18.401,55.0]
[1688206937811,22.979,18.408,18.4,22.988]
[1688206938013,22.979,18.408,18.401,55.0]
[1688206938410,22.979,18.408,18.401,77.987]
[1688206939619,107.9,18.416,18.401,77.987]
[1688206939840,59.143,18.412,18.401,77.987]
[1688206940836,22.978,18.409,18.401,77.987]
[1688206941134,22.976,18.411,18.401,77.987]
[1688206943634,62.36743357,18.42,18.401,77.987]
[1688206943635,22.973,18.413,18.401,77.987]
[1688206943926,22.973,18.413,18.405,22.982]
[1688206944134,59.126,18.419,18.406,55.0]
[1688206944745,114.126,18.419,18.406,55.0]
[1688206945336,82.111,18.414,18.402,92.2202]
[1688206945519,55.0,18.419,18.403,77.985]
[1688206945722,22.972,18.414,18.403,77.985]
[1688206946644,55.0,18.419,18.403,77.985]
[1688206946934,55.0,18.418,18.403,77.985]
[1688206947337,22.971,18.414,18.403,77.985]
[1688206947836,22.971,18.414,18.403,55.0]
[1688206948035,22.971,18.414,18.402,55.0]
[1688206948633,22.971,18.414,18.403,22.984]
[1688206948818,22.971,18.414,18.404,55.0]
[1688206949024,22.971,18.414,18.404,77.984]
[1688206955347,22.971,18.414,18.402,22.985]
[1688206955654,22.971,18.414,18.403,55.0]
[1688206955943,22.971,18.414,18.403,77.985]
[1688206957335,22.971,18.414,18.403,22.985]
[1688206959933,22.971,18.414,18.401,94.7031]
[1688206961052,22.971,18.414,18.402,77.986]
[1688206962031,28.39021352,18.415,18.402,77.986]
[1688206962752,22.97,18.415,18.402,77.986]
[1688206978333,26.9282657,18.418,18.403,20.0]
[1688206978538,55.0,18.419,18.403,20.0]
[1688206978539,55.0,18.419,18.407,190.084]
[1688206978748,55.0,18.419,18.408,167.9124]
[1688206978943,55.0,18.419,18.411,22.975]
[1688206979445,22.965,18.419,18.411,22.975]
[1688206979841,22.965,18.419,18.409,22.977]
[1688206980037,22.965,18.419,18.408,92.9124]
[1688206980247,82.088,18.419,18.408,92.9124]
[1688206980750,22.971,18.415,18.406,22.981]
[1688206981839,22.971,18.415,18.401,95.5265]
[1688206982050,55.0,18.414,18.401,118.5135]
[1688206982251,22.975,18.411,18.401,118.5135]
[1688206983362,22.974,18.413,18.401,118.5135]
[1688206984765,55.0,18.414,18.401,118.5135]
[1688206985060,77.972,18.414,18.401,118.5135]
[1688206985755,139.43569092,18.423,18.401,118.5135]
[1688206985756,22.965,18.42,18.401,118.5135]
[1688206986055,59.111,18.423,18.401,118.5135]
[1688206986056,27.16785615,18.427,18.402,120.35164986]
[1688206986260,22.958,18.425,18.41,35.17]
[1688206986444,22.958,18.425,18.412,22.973]
[1688206986643,22.956,18.427,18.413,55.0]
[1688206986863,22.956,18.427,18.418,22.966]
[1688206987142,93.928,18.425,18.418,22.966]
[1688206988248,116.886,18.425,18.415,22.97]
[1688206988762,93.928,18.425,18.415,22.97]
[1688206988962,116.886,18.425,18.415,22.97]
[1688206989258,116.28331807,18.425,18.415,22.97]
[1688206989965,93.32531807,18.425,18.415,22.97]
[1688206990253,22.957,18.426,18.415,22.97]
[1688206996052,22.957,18.426,18.416,55.0]
[1688206996254,22.957,18.426,18.418,22.965]
[1688206997159,34.89,18.427,18.418,22.965]
[1688206997349,34.89,18.427,18.419,55.0]
[1688206997549,34.89,18.427,18.421,22.962]
[1688206998360,57.845,18.427,18.417,22.966]
[1688206998961,55.0,18.426,18.415,22.969]
[1688206999153,22.96,18.423,18.415,22.969]
[1688206999354,22.96,18.423,18.413,22.971]
[1688207001153,55.0,18.426,18.413,22.971]
[1688207001468,22.958,18.425,18.414,22.971]
[1688207002955,22.962,18.422,18.414,22.971]
[1688207003579,77.96,18.424,18.414,22.971]
[1688207008969,77.96,18.424,18.412,99.2806]
[1688207009861,77.96,18.424,18.414,22.971]
[1688207010061,34.89,18.427,18.414,22.971]
[1688207010270,55.0,18.426,18.414,22.971]
[1688207011781,22.959,18.424,18.414,22.971]
[1688207013680,55.0,18.423,18.412,122.2536]
[1688207013979,22.962,18.422,18.412,122.2536]
[1688207014778,34.89,18.427,18.412,122.2536]
[1688207014973,55.0,18.426,18.412,122.2536]
[1688207015178,22.961,18.422,18.412,122.2536]
[1688207015382,55.0,18.426,18.412,122.2536]
[1688207015580,55.0,18.426,18.412,22.973]
[1688207015985,77.957,18.426,18.412,22.973]
[1688207018684,185.793,18.426,18.404,59.168]
[1688207018879,185.793,18.426,18.412,22.973]
[1688207019965,185.793,18.426,18.41,22.975]
[1688207020279,185.793,18.426,18.406,59.163]
[1688207020488,77.957,18.426,18.411,22.974]
[1688207020988,77.957,18.426,18.415,22.97]
[1688207021583,22.957,18.426,18.415,22.97]
[1688207022574,22.957,18.426,18.406,167.117]
[1688207022774,22.957,18.426,18.411,22.974]
[1688207022974,55.0,18.425,18.411,22.974]
[1688207023179,22.963,18.421,18.411,22.974]
[1688207024171,22.961,18.423,18.411,22.974]
[1688207024413,34.89,18.427,18.412,55.0]
[1688207024578,34.89,18.427,18.416,22.968]
[1688207024783,57.845,18.427,18.417,55.0]
[1688207024989,57.845,18.427,18.418,22.965]
[1688207025791,35.0,18.44,18.421,22.962]
[1688207025991,22.948,18.433,18.417,55.0]
[1688207026285,22.948,18.433,18.418,20.0]
[1688207026487,22.948,18.433,18.419,55.0]
[1688207026670,22.948,18.433,18.42,20.0]
[1688207027076,55.0,18.432,18.42,20.0]
[1688207027277,22.951,18.431,18.42,42.963]
[1688207029104,22.951,18.431,18.42,22.963]
[1688207030700,77.948,18.433,18.42,22.963]
[1688207031080,55.0,18.433,18.424,22.958]
[1688207033301,22.949,18.432,18.421,55.0]
[1688207033499,77.948,18.433,18.424,22.958]
[1688207033979,22.949,18.432,18.421,55.0]
[1688207034391,22.949,18.432,18.424,22.958]
[1688207036476,55.0,18.433,18.425,55.0]
[1688207036684,55.0,18.433,18.426,22.955]
[1688207038389,22.941,18.439,18.427,20.0]
[1688207038584,35.31,18.45,18.432,22.948]
[1688207038793,107.693,18.451,18.433,55.0]
[1688207038993,22.932,18.446,18.438,22.941]
[1688207039185,22.931,18.447,18.438,22.941]
[1688207039881,22.928,18.449,18.438,22.941]
[1688207040081,35.08,18.45,18.439,55.0]
[1688207040301,35.08,18.45,18.44,22.939]
[1688207040599,35.08,18.45,18.441,55.0]
[1688207040792,58.007,18.45,18.439,22.939]
[1688207041586,20.0,18.449,18.44,55.0]
[1688207041788,35.08,18.45,18.443,22.935]
[1688207041991,57.05911083,18.465,18.444,55.0]
[1688207041992,22.925,18.452,18.444,55.0]
[1688207042190,22.925,18.452,18.444,77.934]
[1688207042392,28.32868963,18.457,18.444,77.934]
[1688207042596,59.001,18.458,18.444,77.934]
[1688207043303,22.921,18.455,18.444,77.934]
[1688207044488,22.921,18.455,18.442,22.935]
[1688207044691,22.921,18.455,18.443,55.0]
[1688207044909,22.921,18.455,18.443,77.935]
[1688207045787,22.918,18.457,18.443,77.935]
[1688207046101,22.917,18.458,18.443,77.935]
[1688207047393,81.915,18.458,18.443,77.935]
[1688207047589,22.917,18.458,18.443,244.718]
[1688207047790,22.917,18.458,18.443,88.77219922]
[1688207047990,22.917,18.458,18.444,10.83719922]
[1688207048198,107.62,18.464,18.451,22.924]
[1688207048199,22.915,18.46,18.451,22.924]
[1688207048402,22.913,18.462,18.451,22.924]
[1688207048603,22.913,18.462,18.454,22.921]
[1688207048906,22.91,18.464,18.456,22.918]
[1688207049104,22.909,18.464,18.455,22.92]
[1688207049309,77.909,18.464,18.452,55.0]
[1688207049699,77.909,18.464,18.453,22.922]
[1688207050602,22.909,18.464,18.454,55.0]
[1688207050806,57.05911083,18.465,18.455,22.919]
[1688207051005,79.96711083,18.465,18.456,55.0]
[1688207051209,134.96711083,18.465,18.456,77.918]
[1688207053099,134.96711083,18.465,18.454,22.921]
[1688207053507,134.96711083,18.465,18.452,22.923]
[1688207054913,22.913,18.461,18.452,22.923]
[1688207058309,55.0,18.464,18.452,22.923]
[1688207059316,22.911,18.463,18.452,22.923]
[1688207062318,22.91,18.463,18.452,22.923]
[1688207062522,55.0,18.465,18.452,22.923]
[1688207062722,55.0,18.464,18.452,22.923]
[1688207063102,77.91,18.464,18.452,22.923]
[1688207064418,22.91,18.464,18.452,22.923]
[1688207064614,22.91,18.464,18.453,55.0]
[1688207064813,22.91,18.464,18.456,22.919]
[1688207065315,22.91,18.464,18.452,22.923]
[1688207065520,22.91,18.464,18.453,55.0]
[1688207065916,22.91,18.464,18.452,55.0]
[1688207066425,22.91,18.464,18.455,22.92]
[1688207066917,55.0,18.465,18.455,22.92]
[1688207067115,22.911,18.463,18.455,22.92]
[1688207067520,22.911,18.463,18.453,22.922]
[1688207067732,22.911,18.463,18.449,59.025]
[1688207067906,22.911,18.463,18.45,30.83719922]
[1688207068810,77.909,18.465,18.454,22.92]
[1688207069438,77.909,18.465,18.457,22.917]
[1688207069633,77.909,18.465,18.455,22.92]
[1688207070435,77.909,18.465,18.451,69.85519922]
[1688207070436,136.885,18.465,18.453,22.922]
[1688207070730,22.912,18.462,18.453,22.922]
[1688207072530,77.909,18.465,18.453,22.922]
[1688207072717,55.0,18.465,18.453,22.922]
[1688207072927,55.0,18.465,18.454,55.0]
[1688207073234,55.0,18.465,18.457,22.917]
[1688207073732,77.908,18.465,18.453,10.83719922]
[1688207073928,77.908,18.465,18.456,22.919]
[1688207074523,55.0,18.464,18.456,22.919]
[1688207074830,77.909,18.464,18.456,22.919]
[1688207075331,55.0,18.465,18.456,22.919]
[1688207076635,77.908,18.465,18.456,22.919]
[1688207077934,55.0,18.465,18.456,22.919]
[1688207078317,77.908,18.465,18.456,22.919]
[1688207079036,55.0,18.464,18.455,22.92]
[1688207079334,22.911,18.463,18.455,22.92]
[1688207079539,55.0,18.462,18.455,22.92]
[1688207080233,55.0,18.465,18.455,22.92]
[1688207080546,55.0,18.464,18.455,22.92]
[1688207081547,77.909,18.464,18.455,22.92]
[1688207082530,55.0,18.464,18.455,22.92]
[1688207085439,77.908,18.465,18.455,22.92]
[1688207085642,55.0,18.464,18.455,22.92]
[1688207085946,77.91,18.464,18.455,22.92]
[1688207086347,77.91,18.464,18.445,59.039]
[1688207086534,136.889,18.464,18.449,22.927]
[1688207086730,136.889,18.464,18.452,22.923]
[1688207087444,77.91,18.464,18.452,22.923]
[1688207091926,55.0,18.464,18.452,22.923]
[1688207092136,55.0,18.464,18.452,130.607]
[1688207092547,55.0,18.464,18.452,22.923]
[1688207092731,77.91,18.464,18.452,22.923]
[1688207096931,77.909,18.464,18.452,22.923]
[1688207102536,136.888,18.464,18.45,22.926]
[1688207110962,136.888,18.464,18.45,57.726]
[1688207113662,77.909,18.464,18.45,57.726]
[1688207114356,77.909,18.464,18.45,22.926]
[1688207114539,22.918,18.457,18.447,22.929]
[1688207114747,55.0,18.456,18.445,22.932]
[1688207114950,22.922,18.454,18.445,22.932]
[1688207115347,55.0,18.453,18.445,22.932]
[1688207115568,22.925,18.452,18.443,22.934]
[1688207116655,77.925,18.452,18.443,22.934]
[1688207116845,22.927,18.45,18.441,22.936]
[1688207118372,22.927,18.45,18.441,22.937]
[1688207121067,55.0,18.449,18.435,22.944]
[1688207121260,22.933,18.445,18.435,22.944]
[1688207121569,22.933,18.445,18.433,93.2069]
[1688207121772,55.0,18.444,18.433,93.2069]
[1688207121987,22.938,18.441,18.433,93.2069]
[1688207122969,22.938,18.441,18.433,116.1539]
[1688207123573,77.938,18.441,18.433,116.1539]
[1688207124269,77.938,18.441,18.433,22.947]
[1688207126763,77.938,18.441,18.43,35.0]
[1688207126972,77.938,18.441,18.432,22.948]
[1688207130677,59.03,18.448,18.432,22.948]
[1688207130878,55.0,18.447,18.432,22.948]
[1688207131675,90.0,18.447,18.432,22.948]
[1688207131864,22.936,18.442,18.432,22.948]
[1688207133256,22.936,18.442,18.43,35.0]
[1688207133257,22.936,18.442,18.434,22.946]
[1688207135560,22.934,18.444,18.434,22.946]
[1688207136380,22.932,18.446,18.434,22.946]
[1688207137181,22.932,18.446,18.432,22.948]
[1688207137388,55.0,18.445,18.432,22.948]
[1688207137678,22.937,18.442,18.432,22.948]
[1688207141474,22.934,18.444,18.432,22.948]
[1688207144982,22.934,18.444,18.433,55.0]
[1688207145184,35.0,18.447,18.436,22.943]
[1688207145980,22.933,18.445,18.434,22.945]
[1688207146169,55.0,18.444,18.434,22.945]
[1688207146367,22.937,18.442,18.434,22.945]
[1688207147188,22.937,18.442,18.43,35.0]
[1688207147395,55.0,18.441,18.427,92.9405]
[1688207147683,22.94,18.439,18.431,22.95]
[1688207148091,77.942,18.438,18.427,92.9405]
[1688207148266,77.942,18.438,18.428,20.0]
[1688207149873,77.942,18.438,18.43,22.951]
[1688207151584,22.939,18.44,18.43,22.951]
[1688207151781,55.0,18.439,18.43,22.951]
[1688207151994,77.94,18.439,18.43,22.951]
[1688207152283,77.94,18.439,18.428,22.953]
[1688207154679,77.94,18.439,18.423,99.8806]
[1688207154872,77.94,18.439,18.427,22.955]
[1688207156386,77.94,18.439,18.425,22.957]
[1688207158175,77.94,18.439,18.423,122.8396]
[1688207159373,77.94,18.439,18.42,35.18]
[1688207159374,77.94,18.439,18.421,22.961]
[1688207164394,404.24,18.439,18.421,22.961]
[1688207164694,22.948,18.433,18.421,22.961]
[1688207164894,22.953,18.429,18.421,22.961]
[1688207167387,59.077,18.43,18.421,22.961]
[1688207170397,22.946,18.435,18.427,22.955]
[1688207170779,34.8,18.43,18.425,22.957]
[1688207174202,34.8,18.43,18.422,55.0]
[1688207174407,34.8,18.43,18.421,55.0]
[1688207175100,34.8,18.43,18.425,22.957]
[1688207184211,34.8,18.43,18.42,34.8]
[1688207184416,34.8,18.43,18.421,55.0]
[1688207184810,34.8,18.43,18.424,22.958]
[1688207185794,22.946,18.434,18.424,22.958]
[1688207186809,82.057,18.434,18.424,22.958]
[1688207193510,82.057,18.434,18.425,55.0]
[1688207193714,82.057,18.434,18.425,77.957]
[1688207197035,82.057,18.434,18.425,55.0]
[1688207197403,82.057,18.434,18.424,55.0]
[1688207199409,59.111,18.434,18.424,77.958]
[1688207199612,81.994,18.441,18.429,22.952]
[1688207199815,22.938,18.441,18.431,22.95]
[1688207200215,22.938,18.441,18.43,55.08]
[1688207200409,22.938,18.441,18.43,20.0]
[1688207200609,22.938,18.441,18.43,22.951]
[1688207200817,22.942,18.437,18.418,119.67588629]
[1688207201013,55.0,18.436,18.42,34.76]
[1688207201225,22.95,18.432,18.424,22.958]
[1688207201528,22.95,18.432,18.42,34.76]
[1688207202924,22.95,18.432,18.422,22.961]
[1688207206913,213.77763356,18.44,18.422,22.961]
[1688207207109,22.947,18.434,18.426,22.956]
[1688207208023,106.02163356,18.44,18.426,22.956]
[1688207208417,55.0,18.439,18.426,22.956]
[1688207209734,22.943,18.437,18.426,22.956]
[1688207212528,55.0,18.436,18.424,22.958]
[1688207212731,22.948,18.433,18.424,22.958]
[1688207212945,22.948,18.433,18.423,22.96]
[1688207215231,22.948,18.433,18.42,34.76]
[1688207215439,22.948,18.433,18.42,57.723]
[1688207218335,22.948,18.433,18.421,55.0]
[1688207218539,59.065,18.438,18.424,22.958]
[1688207219040,22.945,18.436,18.424,22.958]
[1688207222044,22.945,18.436,18.425,55.0]
[1688207222221,22.945,18.436,18.427,22.954]
[1688207222540,86.02163356,18.44,18.427,22.954]
[1688207222541,22.942,18.438,18.428,55.0]
[1688207222739,22.942,18.438,18.43,22.951]
[1688207223244,22.942,18.438,18.428,77.953]
[1688207224946,22.94,18.44,18.429,20.0]
[1688207225128,22.94,18.44,18.432,22.948]
[1688207227241,35.08,18.44,18.432,22.948]
[1688207227430,35.08,18.44,18.429,20.0]
[1688207227431,58.02,18.44,18.429,20.0]
[1688207227633,58.02,18.44,18.429,42.952]
[1688207228149,22.942,18.438,18.429,42.952]
[1688207230035,55.0,18.437,18.427,22.954]
[1688207230242,22.945,18.435,18.427,22.954]
[1688207231238,22.945,18.435,18.422,97.0952]
[1688207231443,22.945,18.435,18.424,22.958]
[1688207231743,22.949,18.432,18.424,22.958]
[1688207232449,22.949,18.432,18.419,59.121]
[1688207232755,22.949,18.432,18.422,22.96]
[1688207233747,22.949,18.432,18.415,59.135]
[1688207233949,22.949,18.432,18.421,22.962]
[1688207234449,35.08,18.43,18.421,22.962]
[1688207234656,22.954,18.428,18.421,22.962]
[1688207234853,22.954,18.428,18.416,22.968]
[1688207234854,55.0,18.427,18.416,22.968]
[1688207235050,22.959,18.424,18.416,22.968]
[1688207236049,77.959,18.424,18.416,22.968]
[1688207237242,77.959,18.424,18.411,90.3796]
[1688207237447,22.964,18.42,18.413,22.971]
[1688207237655,22.964,18.42,18.411,113.3536]
[1688207237846,22.964,18.42,18.411,22.974]
[1688207238447,22.964,18.42,18.41,35.08]
[1688207238653,22.964,18.42,18.411,22.974]
[1688207239345,55.0,18.424,18.411,22.974]
[1688207239547,22.962,18.422,18.411,22.974]
[1688207240353,22.962,18.422,18.41,35.08]
[1688207240659,22.962,18.422,18.411,22.975]
[1688207243347,35.08,18.42,18.411,22.975]
[1688207243653,22.965,18.419,18.411,22.975]
[1688207244563,55.0,18.423,18.411,22.975]
[1688207244564,22.963,18.421,18.411,22.975]
[1688207244761,22.961,18.423,18.412,55.0]
[1688207244962,22.961,18.423,18.415,22.969]
[1688207245446,22.96,18.423,18.415,22.969]
[1688207249062,22.96,18.423,18.413,22.971]
[1688207249843,22.96,18.423,18.412,55.0]
[1688207250057,55.0,18.424,18.412,137.118]
[1688207250262,22.96,18.423,18.412,77.972]
[1688207250566,77.959,18.424,18.412,77.972]
[1688207255652,55.0,18.424,18.412,77.972]
[1688207255852,55.0,18.424,18.412,245.036]
[1688207256463,77.959,18.424,18.412,137.118]
[1688207256654,77.959,18.424,18.413,95.8935]
[1688207256851,77.959,18.424,18.415,22.969]
[1688207257051,77.959,18.424,18.416,55.0]
[1688207257547,77.959,18.424,18.413,95.8935]
[1688207257753,77.959,18.424,18.413,118.8655]
[1688207258255,77.959,18.424,18.413,95.8935]
[1688207258658,77.959,18.424,18.413,118.8655]
[1688207258872,77.959,18.424,18.413,22.972]
[1688207269756,77.959,18.424,18.41,35.08]
[1688207269962,77.959,18.424,18.413,22.972]
[1688207273564,55.0,18.424,18.413,82.114]
[1688207278576,55.0,18.424,18.414,55.0]
[1688207278781,55.0,18.424,18.417,22.967]
[1688207283888,22.953,18.429,18.418,55.0]
[1688207284195,22.953,18.429,18.421,22.962]
[1688207286074,35.08,18.43,18.421,22.962]
[1688207288092,35.08,18.43,18.424,22.958]
[1688207288679,34.58,18.43,18.424,22.958]
[1688207291700,34.58,18.43,18.42,34.76]
[1688207291889,34.58,18.43,18.421,77.961]
[1688207292297,34.08,18.43,18.421,77.961]
[1688207294913,34.08,18.43,18.421,22.961]
[1688207299799,57.032,18.43,18.421,22.961]
[1688207300407,56.032,18.43,18.421,22.961]
[1688207300803,33.08,18.43,18.421,22.961]
[1688207302601,33.08,18.43,18.422,55.0]
[1688207302792,33.08,18.43,18.424,22.958]
[1688207302993,22.945,18.436,18.424,22.958]
[1688207304011,55.0,18.435,18.424,22.958]
[1688207304214,22.948,18.433,18.424,22.958]
[1688207304596,55.0,18.432,18.424,22.958]
[1688207304794,77.949,18.432,18.424,22.958]
[1688207305513,77.949,18.432,18.424,22.959]
[1688207306311,55.0,18.432,18.424,22.959]
[1688207306913,55.0,18.432,18.42,93.88]
[1688207306914,77.95,18.432,18.425,22.957]
[1688207307218,77.95,18.432,18.42,34.76]
[1688207307396,55.0,18.432,18.424,22.959]
[1688207313099,77.949,18.432,18.424,22.959]
[1688207313299,55.0,18.432,18.424,22.959]
[1688207313614,55.0,18.433,18.424,22.959]
[1688207319825,77.948,18.433,18.424,22.959]
[1688207322321,35.08,18.43,18.422,22.96]
[1688207322519,58.031,18.43,18.422,22.96]
[1688207323205,55.0,18.429,18.422,22.96]
[1688207327122,58.031,18.43,18.422,22.96]
[1688207327320,55.0,18.429,18.422,22.96]
[1688207328320,35.08,18.43,18.422,22.96]
[1688207328626,22.95,18.432,18.422,22.96]
[1688207329122,22.947,18.434,18.422,22.96]
[1688207329705,77.949,18.433,18.422,22.96]
[1688207331514,35.08,18.43,18.41,34.76]
[1688207331827,22.959,18.424,18.414,22.971]
[1688207332209,35.08,18.42,18.407,59.161]
[1688207332408,22.965,18.419,18.411,22.974]
[1688207333331,45.939,18.419,18.411,22.974]
[1688207336435,22.974,18.419,18.411,22.974]
[1688207339524,45.939,18.419,18.411,22.974]
[1688207341841,55.0,18.418,18.409,22.977]
[1688207342027,22.969,18.416,18.408,22.978]
[1688207342341,22.969,18.416,18.407,22.979]
[1688207342844,22.973,18.413,18.405,22.982]
[1688207343925,55.0,18.418,18.405,22.982]
[1688207343926,22.971,18.415,18.405,22.982]
[1688207344319,22.974,18.419,18.406,75.0]
[1688207344526,22.974,18.419,18.41,34.76]
[1688207344833,22.974,18.419,18.412,22.973]
[1688207353841,22.974,18.419,18.412,82.119]
[1688207354031,22.974,18.419,18.413,55.0]
[1688207354233,22.974,18.419,18.414,22.97]
[1688207362042,22.974,18.419,18.41,34.76]
[1688207362253,22.974,18.419,18.411,55.0]
[1688207362633,22.974,18.419,18.411,77.974]
[1688207363254,22.963,18.421,18.411,77.974]
[1688207364437,82.061,18.421,18.411,77.974]
[1688207365934,22.963,18.421,18.411,77.974]
[1688207367166,59.106,18.422,18.411,77.974]
[1688207367337,22.961,18.423,18.411,77.974]
[1688207368250,27.83508081,18.431,18.417,22.967]
[1688207368456,22.956,18.427,18.42,34.76]
[1688207369335,22.956,18.427,18.42,57.723]
[1688207370846,77.974,18.428,18.42,57.723]
[1688207373858,22.951,18.431,18.424,22.959]
[1688207374065,22.949,18.433,18.424,22.959]
[1688207375061,55.0,18.431,18.424,22.959]
[1688207376361,59.063,18.438,18.424,22.959]
[1688207376663,35.08,18.44,18.424,22.959]
[1688207376854,5.04880841,18.438,18.424,22.959]
[1688207377171,22.944,18.436,18.426,22.955]
[1688207379361,21.720613,18.438,18.427,20.0]
[1688207379666,28.36254345,18.444,18.43,116.798]
[1688207379847,1.45433857,18.443,18.43,116.798]
[1688207380161,22.936,18.443,18.43,57.711]
[1688207380457,131.504042,18.443,18.434,22.945]
[1688207381762,108.568042,18.443,18.434,22.945]
[1688207383147,22.928,18.449,18.439,22.939]
[1688207383347,22.928,18.449,18.435,75.0]
[1688207383348,22.928,18.449,18.442,22.936]
[1688207383652,22.32578887,18.449,18.442,22.936]
[1688207383856,22.926,18.451,18.442,22.936]
[1688207384156,35.08,18.45,18.434,107.786]
[1688207384343,22.932,18.446,18.438,22.94]
[1688207385451,22.93,18.447,18.438,22.94]
[1688207385863,54.76,18.451,18.439,20.0]
[1688207386055,54.76,18.451,18.442,22.936]
[1688207386358,77.686,18.451,18.442,22.936]
[1688207388253,54.76,18.451,18.442,22.936]
[1688207389955,22.921,18.455,18.442,22.936]
[1688207390162,22.921,18.455,18.443,55.0]
[1688207390361,22.921,18.455,18.446,22.931]
[1688207391868,22.921,18.455,18.443,55.0]
[1688207392071,22.921,18.455,18.443,22.934]
[1688207394768,59.055,18.456,18.443,22.934]
[1688207394769,22.925,18.451,18.443,22.934]
[1688207395671,22.925,18.451,18.441,117.8312]
[1688207396569,22.921,18.455,18.441,117.8312]
[1688207396775,1.01166568,18.454,18.442,55.0]
[1688207397078,22.921,18.454,18.445,22.932]
[1688207400363,22.92,18.455,18.445,22.932]
[1688207400560,59.055,18.456,18.446,75.0]
[1688207400760,22.914,18.46,18.449,22.928]
[1688207401077,22.914,18.46,18.45,20.0]
[1688207401278,22.914,18.46,18.452,22.923]
[1688207401575,45.828,18.46,18.452,22.923]
[1688207402077,22.914,18.46,18.452,22.923]
[1688207404979,22.914,18.46,18.446,162.718]
[1688207404980,22.916,18.458,18.45,22.925]
[1688207406272,55.0,18.459,18.45,22.925]